[Event "*** MasterClass Titled Tuesday Blitz"]
[Site "Chess.com"]
[Date "2017.10.03"]
[Round "3"]
[White "biostatistician"]
[Black "ChessWarrior7197"]
[Result "0-1"]
[WhiteElo "2405"]
[BlackElo "2660"]
[TimeControl "180+2"]
[EndTime "13:38:12 PDT"]
[Termination "ChessWarrior7197 won by resignation"]

1. d4 {[%clk 0:03:01.9]} 1... Nf6 {[%clk 0:03:00.6]} 2. Nf3 {[%clk 0:03:03.3]}
2... e6 {[%clk 0:03:01.5]} 3. c4 {[%clk 0:03:04.7]} 3... d5 {[%clk 0:03:02.7]}
4. Nc3 {[%clk 0:03:05.6]} 4... a6 {[%clk 0:03:03.5]} 5. cxd5 {[%clk 0:03:03.8]}
5... exd5 {[%clk 0:03:04.6]} 6. Bg5 {[%clk 0:03:04.7]} 6... Be6 {[%clk
0:03:05.6]} 7. e3 {[%clk 0:03:04.1]} 7... Bd6 {[%clk 0:03:06.6]} 8. Bd3 {[%clk
0:03:04.8]} 8... c6 {[%clk 0:03:07.7]} 9. O-O {[%clk 0:03:05.3]} 9... Nbd7
{[%clk 0:03:08.9]} 10. e4 {[%clk 0:03:03.8]} 10... dxe4 {[%clk 0:03:08.8]} 11.
Nxe4 {[%clk 0:03:05.7]} 11... Be7 {[%clk 0:03:10]} 12. Qe2 {[%clk 0:02:52.4]}
12... O-O {[%clk 0:03:07.8]} 13. Rfe1 {[%clk 0:02:49.5]} 13... h6 {[%clk
0:03:07.1]} 14. Bh4 {[%clk 0:02:36.4]} 14... Re8 {[%clk 0:03:06.6]} 15. Ne5
{[%clk 0:02:28.4]} 15... Nxe4 {[%clk 0:03:00.5]} 16. Bxe7 {[%clk 0:02:11.3]}
16... Qxe7 {[%clk 0:03:01.2]} 17. Qxe4 {[%clk 0:02:12.3]} 17... Nf6 {[%clk
0:03:02]} 18. Qf3 {[%clk 0:02:02.4]} 18... Rad8 {[%clk 0:03:01]} 19. Rad1 {[%clk
0:02:02.8]} 19... Qb4 {[%clk 0:03:01.3]} 20. Qe3 {[%clk 0:01:26.8]} 20... Qxb2
{[%clk 0:02:53.7]} 21. a4 {[%clk 0:01:14.8]} 21... Kf8 {[%clk 0:02:49.7]} 22.
Bf1 {[%clk 0:00:59.6]} 22... Ng4 {[%clk 0:02:40.2]} 23. Qf4 {[%clk 0:00:47.6]}
23... Nxe5 {[%clk 0:02:39.6]} 24. Qxe5 {[%clk 0:00:45.4]} 24... Rd5 {[%clk
0:02:37.1]} 25. Qc7 {[%clk 0:00:45.5]} 25... Rd7 {[%clk 0:02:30]} 26. Qe5 {[%clk
0:00:41.4]} 26... Rde7 {[%clk 0:02:25.1]} 27. Qc5 {[%clk 0:00:37.5]} 27... Qb3
{[%clk 0:02:13.5]} 28. Rb1 {[%clk 0:00:22.7]} 28... Qd5 {[%clk 0:02:13.8]} 29.
Qc3 {[%clk 0:00:23]} 29... Kg8 {[%clk 0:02:12.5]} 30. Rb6 {[%clk 0:00:22.3]}
30... Bc8 {[%clk 0:02:08.6]} 31. Rxe7 {[%clk 0:00:20.9]} 31... Rxe7 {[%clk
0:02:10.5]} 32. h3 {[%clk 0:00:21.7]} 32... g6 {[%clk 0:02:11]} 33. Qd2 {[%clk
0:00:21.6]} 33... Kg7 {[%clk 0:02:10.1]} 34. Qc3 {[%clk 0:00:20.5]} 34... Rd7
{[%clk 0:02:07.7]} 35. Rb4 {[%clk 0:00:20.6]} 35... Re7 {[%clk 0:02:04.1]} 36.
Bc4 {[%clk 0:00:19.2]} 36... Qd6 {[%clk 0:01:57.7]} 37. d5+ {[%clk 0:00:20]}
37... Kh7 {[%clk 0:01:58.5]} 38. dxc6 {[%clk 0:00:19.5]} 38... Qxc6 {[%clk
0:01:59.6]} 39. Qd2 {[%clk 0:00:15.6]} 39... Bf5 {[%clk 0:01:52.8]} 40. Bf1
{[%clk 0:00:14.6]} 40... Rd7 {[%clk 0:01:45.4]} 41. Rd4 {[%clk 0:00:15]} 41...
Rxd4 {[%clk 0:01:45.7]} 42. Qxd4 {[%clk 0:00:16.9]} 42... Be6 {[%clk 0:01:47.5]}
43. a5 {[%clk 0:00:16.7]} 43... Qc7 {[%clk 0:01:47]} 44. Qd2 {[%clk 0:00:15.8]}
44... b6 {[%clk 0:01:46.8]} 45. axb6 {[%clk 0:00:17.7]} 45... Qxb6 {[%clk
0:01:48.5]} 46. h4 {[%clk 0:00:17.5]} 46... h5 {[%clk 0:01:48.8]} 47. Bd3 {[%clk
0:00:16.3]} 47... a5 {[%clk 0:01:37.5]} 48. Qg5 {[%clk 0:00:17.2]} 48... Kg8
{[%clk 0:01:37]} 49. Bxg6 {[%clk 0:00:14.7]} 49... fxg6 {[%clk 0:01:37.6]} 50.
Qxg6+ {[%clk 0:00:16.6]} 50... Kf8 {[%clk 0:01:38.9]} 51. Qf6+ {[%clk
0:00:15.5]} 51... Ke8 {[%clk 0:01:38.6]} 52. Qg6+ {[%clk 0:00:16.8]} 52... Kd7
{[%clk 0:01:38]} 53. Qh7+ {[%clk 0:00:17.7]} 53... Kc6 {[%clk 0:01:37.7]} 54.
Qxh5 {[%clk 0:00:19.2]} 54... a4 {[%clk 0:01:36.8]} 55. Qf3+ {[%clk 0:00:18.6]}
55... Bd5 {[%clk 0:01:37.3]} 56. Qf6+ {[%clk 0:00:19.5]} 56... Kc5 {[%clk
0:01:38]} 57. Qe7+ {[%clk 0:00:20.3]} 57... Qd6 {[%clk 0:01:35.6]} 58. Qa7+
{[%clk 0:00:21.1]} 58... Kb5 {[%clk 0:01:36.6]} 59. h5 {[%clk 0:00:22.6]} 59...
a3 {[%clk 0:01:35]} 60. h6 {[%clk 0:00:23.9]} 60... a2 {[%clk 0:01:35.6]} 61. h7
{[%clk 0:00:24]} 61... Qe5 {[%clk 0:01:36.4]} 62. Qd7+ {[%clk 0:00:15.2]} 62...
Kb4 {[%clk 0:01:31.1]} 63. Qe7+ {[%clk 0:00:06.1]} 63... Qxe7 {[%clk 0:01:30]}
64. h8=Q {[%clk 0:00:07.7]} 64... Qe1+ {[%clk 0:01:29.8]} 65. Kh2 {[%clk
0:00:09.2]} 65... a1=Q {[%clk 0:01:30.4]} 0-1

[Event "*** MasterClass Titled Tuesday Blitz"]
[Site "Chess.com"]
[Date "2017.10.03"]
[Round "3"]
[White "Keaton87"]
[Black "Shtembuliak"]
[Result "0-1"]
[WhiteElo "2449"]
[BlackElo "2617"]
[TimeControl "180+2"]
[EndTime "13:38:15 PDT"]
[Termination "Shtembuliak won by resignation"]

1. d4 {[%clk 0:03:01.9]} 1... Nf6 {[%clk 0:02:59.4]} 2. Nf3 {[%clk 0:03:03]}
2... g6 {[%clk 0:03:00.8]} 3. Bf4 {[%clk 0:03:03.7]} 3... Bg7 {[%clk 0:03:02.2]}
4. e3 {[%clk 0:03:05.1]} 4... c5 {[%clk 0:03:01.7]} 5. c3 {[%clk 0:03:04.4]}
5... Qb6 {[%clk 0:03:01.4]} 6. Qb3 {[%clk 0:03:04.9]} 6... d6 {[%clk 0:03:02.9]}
7. Be2 {[%clk 0:03:03.6]} 7... Be6 {[%clk 0:03:04.1]} 8. Qa3 {[%clk 0:03:03.8]}
8... O-O {[%clk 0:03:00.3]} 9. h3 {[%clk 0:03:02.5]} 9... Nc6 {[%clk 0:02:59.8]}
10. O-O {[%clk 0:03:03.2]} 10... cxd4 {[%clk 0:02:51.1]} 11. exd4 {[%clk
0:03:03.9]} 11... Nd5 {[%clk 0:02:52.7]} 12. Bh2 {[%clk 0:03:04.2]} 12... Bh6
{[%clk 0:02:49.6]} 13. Nbd2 {[%clk 0:03:04.5]} 13... Nf4 {[%clk 0:02:49.2]} 14.
Bxf4 {[%clk 0:02:47.3]} 14... Bxf4 {[%clk 0:02:51.1]} 15. Nc4 {[%clk 0:02:48.3]}
15... Qc7 {[%clk 0:02:48.7]} 16. Rfe1 {[%clk 0:02:48.3]} 16... b5 {[%clk
0:02:46]} 17. Ne3 {[%clk 0:02:46]} 17... Bxe3 {[%clk 0:02:41]} 18. fxe3 {[%clk
0:02:41.6]} 18... Rfb8 {[%clk 0:02:42.4]} 19. Rac1 {[%clk 0:02:28.2]} 19... a5
{[%clk 0:02:41.6]} 20. b3 {[%clk 0:02:27.1]} 20... Bd5 {[%clk 0:02:31]} 21. c4
{[%clk 0:02:22.5]} 21... bxc4 {[%clk 0:02:31.3]} 22. bxc4 {[%clk 0:02:23.4]}
22... Be4 {[%clk 0:02:18.5]} 23. Nd2 {[%clk 0:02:17.8]} 23... Bf5 {[%clk
0:02:19.6]} 24. Bf3 {[%clk 0:01:51.4]} 24... Ra7 {[%clk 0:02:12.8]} 25. c5
{[%clk 0:01:51.4]} 25... Nb4 {[%clk 0:02:09.4]} 26. e4 {[%clk 0:01:36.5]} 26...
Bd7 {[%clk 0:01:58.5]} 27. c6 {[%clk 0:01:34.1]} 27... Bxc6 {[%clk 0:01:52.8]}
28. Qe3 {[%clk 0:01:25.2]} 28... Qb6 {[%clk 0:01:45.2]} 29. Nc4 {[%clk
0:01:23.1]} 29... Qa6 {[%clk 0:01:46.7]} 30. a3 {[%clk 0:01:19.9]} 30... Na2
{[%clk 0:01:18.2]} 31. Rc2 {[%clk 0:00:32.1]} 31... Ba4 {[%clk 0:01:19.3]} 32.
Rxa2 {[%clk 0:00:24.7]} 32... Qxc4 {[%clk 0:01:20.4]} 33. Rd2 {[%clk 0:00:20.1]}
33... Rb3 {[%clk 0:01:12.2]} 34. Qh6 {[%clk 0:00:19.3]} 34... Rd3 {[%clk
0:01:04.9]} 35. Rxd3 {[%clk 0:00:14.6]} 35... Qxd3 {[%clk 0:01:06.8]} 36. Qe3
{[%clk 0:00:15.6]} 36... Qxe3+ {[%clk 0:01:04.2]} 37. Rxe3 {[%clk 0:00:17.5]}
37... Rc7 {[%clk 0:01:05.1]} 38. Kf2 {[%clk 0:00:18]} 38... Kg7 {[%clk
0:01:00.8]} 39. e5 {[%clk 0:00:19.2]} 39... dxe5 {[%clk 0:00:58.6]} 40. dxe5
{[%clk 0:00:21.1]} 40... Rc2+ {[%clk 0:00:55.7]} 41. Re2 {[%clk 0:00:17.4]}
41... Rc3 {[%clk 0:00:52.6]} 42. Re3 {[%clk 0:00:18.2]} 42... Rc2+ {[%clk
0:00:54]} 43. Re2 {[%clk 0:00:19.3]} 43... Rxe2+ {[%clk 0:00:54.9]} 44. Bxe2
{[%clk 0:00:18.9]} 44... f6 {[%clk 0:00:56.2]} 45. exf6+ {[%clk 0:00:19.4]}
45... Kxf6 {[%clk 0:00:56.5]} 46. Ke3 {[%clk 0:00:20.3]} 46... Ke5 {[%clk
0:00:51.6]} 47. Bf3 {[%clk 0:00:17.3]} 47... g5 {[%clk 0:00:50.2]} 48. g3 {[%clk
0:00:17.8]} 48... h6 {[%clk 0:00:50.9]} 49. h4 {[%clk 0:00:17.7]} 49... Bb5
{[%clk 0:00:52.1]} 50. Be4 {[%clk 0:00:18.3]} 50... gxh4 {[%clk 0:00:49]} 51.
gxh4 {[%clk 0:00:19.1]} 51... Bc4 {[%clk 0:00:50]} 52. Bf3 {[%clk 0:00:16.4]}
52... Bd5 {[%clk 0:00:44.9]} 53. Bg4 {[%clk 0:00:16.7]} 53... Kd6 {[%clk
0:00:45]} 54. Kd4 {[%clk 0:00:12.2]} 54... e5+ {[%clk 0:00:45.9]} 55. Kc3 {[%clk
0:00:13.7]} 55... Kc5 {[%clk 0:00:37.8]} 56. Bd1 {[%clk 0:00:14.6]} 56... Bc4
{[%clk 0:00:29.9]} 57. Bc2 {[%clk 0:00:13.1]} 57... Bd5 {[%clk 0:00:31.2]} 58.
Bd1 {[%clk 0:00:13.8]} 58... Bc6 {[%clk 0:00:32.5]} 59. Bc2 {[%clk 0:00:14.4]}
59... e4 {[%clk 0:00:31.1]} 60. Bd1 {[%clk 0:00:13.1]} 60... Bb5 {[%clk
0:00:30.5]} 61. Bg4 {[%clk 0:00:08.7]} 61... Kd5 {[%clk 0:00:28.2]} 62. Be2
{[%clk 0:00:04.6]} 62... Bxe2 {[%clk 0:00:28.1]} 0-1

[Event "*** MasterClass Titled Tuesday Blitz"]
[Site "Chess.com"]
[Date "2017.10.03"]
[Round "3"]
[White "Kazan28"]
[Black "ka1ser64"]
[Result "0-1"]
[WhiteElo "2154"]
[BlackElo "2322"]
[TimeControl "180+2"]
[EndTime "13:38:28 PDT"]
[Termination "ka1ser64 won by checkmate"]

1. d4 {[%clk 0:03:01.9]} 1... d5 {[%clk 0:02:19.2]} 2. c4 {[%clk 0:03:01.9]}
2... dxc4 {[%clk 0:02:19.4]} 3. e4 {[%clk 0:03:02.3]} 3... e5 {[%clk 0:02:20.1]}
4. Nf3 {[%clk 0:03:03]} 4... Bb4+ {[%clk 0:02:20.2]} 5. Nc3 {[%clk 0:03:02.3]}
5... exd4 {[%clk 0:02:20.1]} 6. Qxd4 {[%clk 0:03:00]} 6... Qe7 {[%clk
0:02:00.9]} 7. Bxc4 {[%clk 0:02:50.9]} 7... Nf6 {[%clk 0:01:57]} 8. O-O {[%clk
0:02:50.9]} 8... Nc6 {[%clk 0:01:57.4]} 9. Qe3 {[%clk 0:02:48.6]} 9... O-O
{[%clk 0:01:54]} 10. Nd5 {[%clk 0:02:44.9]} 10... Nxd5 {[%clk 0:01:54.8]} 11.
exd5 {[%clk 0:02:45.8]} 11... Qxe3 {[%clk 0:01:10.1]} 12. Bxe3 {[%clk 0:02:45]}
12... Ne7 {[%clk 0:01:11.7]} 13. Bf4 {[%clk 0:02:42.1]} 13... Bd6 {[%clk
0:01:08.2]} 14. Bxd6 {[%clk 0:02:40.9]} 14... cxd6 {[%clk 0:01:09.5]} 15. Nd4
{[%clk 0:02:41.8]} 15... Bd7 {[%clk 0:01:07.9]} 16. Rfe1 {[%clk 0:02:42.2]}
16... Rfe8 {[%clk 0:01:07.1]} 17. f3 {[%clk 0:02:40.9]} 17... a6 {[%clk
0:01:07.2]} 18. Kf2 {[%clk 0:02:41.5]} 18... Rac8 {[%clk 0:01:08]} 19. Rac1
{[%clk 0:02:38.8]} 19... Kf8 {[%clk 0:01:09]} 20. Bb3 {[%clk 0:02:38]} 20... Ng6
{[%clk 0:01:09.3]} 21. Rxe8+ {[%clk 0:02:34.3]} 21... Kxe8 {[%clk 0:01:09.9]}
22. Rxc8+ {[%clk 0:02:32.3]} 22... Bxc8 {[%clk 0:01:11.1]} 23. a4 {[%clk
0:02:30.5]} 23... Ne5 {[%clk 0:01:11.2]} 24. a5 {[%clk 0:02:31.3]} 24... Bd7
{[%clk 0:01:08]} 25. h3 {[%clk 0:02:31.9]} 25... Nd3+ {[%clk 0:01:03.1]} 26. Ke3
{[%clk 0:02:31]} 26... Nxb2 {[%clk 0:01:02.9]} 27. f4 {[%clk 0:02:22.3]} 27...
g6 {[%clk 0:00:54.6]} 28. g4 {[%clk 0:02:23.1]} 28... Na4 {[%clk 0:00:33.8]} 29.
Bxa4 {[%clk 0:02:13.1]} 29... Bxa4 {[%clk 0:00:34.8]} 30. f5 {[%clk 0:02:14.6]}
30... Ke7 {[%clk 0:00:35.1]} 31. Kf4 {[%clk 0:02:15.5]} 31... Bb5 {[%clk
0:00:31.6]} 32. h4 {[%clk 0:02:14.8]} 32... Bc4 {[%clk 0:00:32.5]} 33. fxg6
{[%clk 0:02:11.1]} 33... fxg6 {[%clk 0:00:26.1]} 34. Kg5 {[%clk 0:02:12.1]}
34... Bxd5 {[%clk 0:00:25.5]} 35. Kh6 {[%clk 0:02:12.6]} 35... Kf7 {[%clk
0:00:13.5]} 36. Kxh7 {[%clk 0:02:11.9]} 36... b5 {[%clk 0:00:11.5]} 37. axb6
{[%clk 0:02:11.7]} 37... a5 {[%clk 0:00:12.6]} 38. g5 {[%clk 0:02:12.9]} 38...
a4 {[%clk 0:00:13.8]} 39. h5 {[%clk 0:02:14.2]} 39... gxh5 {[%clk 0:00:14.5]}
40. g6+ {[%clk 0:02:15.4]} 40... Ke7 {[%clk 0:00:15.5]} 41. g7 {[%clk 0:02:14]}
41... Kd7 {[%clk 0:00:15.7]} 42. Nf5 {[%clk 0:01:54.1]} 42... a3 {[%clk
0:00:14.5]} 43. Ne7 {[%clk 0:01:03.6]} 43... Bf7 {[%clk 0:00:09]} 44. Nf5 {[%clk
0:00:52.3]} 44... a2 {[%clk 0:00:08.3]} 45. Nxd6 {[%clk 0:00:53.5]} 45... Kxd6
{[%clk 0:00:08.4]} 46. b7 {[%clk 0:00:54.4]} 46... a1=Q {[%clk 0:00:09.7]} 47.
b8=Q+ {[%clk 0:00:53.1]} 47... Ke7 {[%clk 0:00:10.5]} 48. Qc7+ {[%clk
0:00:49.7]} 48... Kf6 {[%clk 0:00:11.5]} 49. Qf4+ {[%clk 0:00:47.9]} 49... Ke6
{[%clk 0:00:11.2]} 50. Qc4+ {[%clk 0:00:47.7]} 50... Ke7 {[%clk 0:00:11.5]} 51.
Qc7+ {[%clk 0:00:45.8]} 51... Ke8 {[%clk 0:00:12.3]} 52. Qc8+ {[%clk 0:00:44.1]}
52... Ke7 {[%clk 0:00:13.4]} 53. Qf8+ {[%clk 0:00:45.1]} 53... Ke6 {[%clk
0:00:12.5]} 54. Qc8+ {[%clk 0:00:44.4]} 54... Kf6 {[%clk 0:00:13.2]} 55. Qd8+
{[%clk 0:00:42]} 55... Kf5 {[%clk 0:00:12.3]} 56. Qf8 {[%clk 0:00:39.9]} 56...
Ke6 {[%clk 0:00:07.2]} 57. Qxf7+ {[%clk 0:00:37.1]} 57... Kxf7 {[%clk
0:00:08.1]} 58. g8=Q+ {[%clk 0:00:37.8]} 58... Ke7 {[%clk 0:00:09.8]} 59. Qg5+
{[%clk 0:00:38.8]} 59... Kf8 {[%clk 0:00:09.5]} 60. Qd8+ {[%clk 0:00:38]} 60...
Kf7 {[%clk 0:00:10.5]} 61. Qd7+ {[%clk 0:00:38.3]} 61... Kf8 {[%clk 0:00:12]}
62. Qd8+ {[%clk 0:00:37.5]} 62... Kf7 {[%clk 0:00:13.4]} 63. Qd7+ {[%clk
0:00:37.5]} 63... Kf8 {[%clk 0:00:14]} 64. Qd6+ {[%clk 0:00:35.1]} 64... Kf7
{[%clk 0:00:15.3]} 65. Qg6+ {[%clk 0:00:36.2]} 65... Kf8 {[%clk 0:00:16.1]} 66.
Qxh5 {[%clk 0:00:35.6]} 66... Qg7# {[%clk 0:00:16.1]} 0-1

[Event "*** MasterClass Titled Tuesday Blitz"]
[Site "Chess.com"]
[Date "2017.10.03"]
[Round "3"]
[White "Paralinch"]
[Black "Jospem"]
[Result "1-0"]
[WhiteElo "2677"]
[BlackElo "2553"]
[TimeControl "180+2"]
[EndTime "13:39:03 PDT"]
[Termination "Paralinch won on time"]

1. e4 {[%clk 0:03:01.9]} 1... c5 {[%clk 0:03:00.5]} 2. Nf3 {[%clk 0:03:02.7]}
2... d6 {[%clk 0:03:01.7]} 3. d4 {[%clk 0:03:03.9]} 3... cxd4 {[%clk 0:03:03.3]}
4. Nxd4 {[%clk 0:03:05.8]} 4... Nf6 {[%clk 0:03:04.8]} 5. Nc3 {[%clk 0:03:07.1]}
5... a6 {[%clk 0:03:04.9]} 6. Be3 {[%clk 0:03:07.3]} 6... e5 {[%clk 0:03:05.7]}
7. Nf3 {[%clk 0:03:08.6]} 7... Be7 {[%clk 0:03:06.6]} 8. Bc4 {[%clk 0:03:09.4]}
8... O-O {[%clk 0:03:07.3]} 9. O-O {[%clk 0:03:10]} 9... Be6 {[%clk 0:03:07.7]}
10. Bb3 {[%clk 0:03:11.1]} 10... Re8 {[%clk 0:03:08.5]} 11. Bg5 {[%clk
0:03:08.8]} 11... Nbd7 {[%clk 0:03:08.7]} 12. Qe2 {[%clk 0:03:04.3]} 12... Qc7
{[%clk 0:03:07.4]} 13. Rfd1 {[%clk 0:03:04.4]} 13... Rac8 {[%clk 0:03:08.1]} 14.
Rac1 {[%clk 0:02:58]} 14... Nb6 {[%clk 0:03:07.7]} 15. Bxf6 {[%clk 0:02:56.1]}
15... Bxf6 {[%clk 0:03:08.5]} 16. Nd5 {[%clk 0:02:57.3]} 16... Nxd5 {[%clk
0:03:07.3]} 17. Bxd5 {[%clk 0:02:59.2]} 17... Bd7 {[%clk 0:03:08.2]} 18. c3
{[%clk 0:02:52.3]} 18... g6 {[%clk 0:03:08.4]} 19. Rd2 {[%clk 0:02:42.7]} 19...
Re7 {[%clk 0:03:08.5]} 20. Rcd1 {[%clk 0:02:40.4]} 20... Rd8 {[%clk 0:03:01.8]}
21. Qc4 {[%clk 0:02:36.4]} 21... Qb8 {[%clk 0:03:01.6]} 22. Qb3 {[%clk
0:02:33.8]} 22... Be8 {[%clk 0:02:57.6]} 23. Rd3 {[%clk 0:02:16.9]} 23... Kg7
{[%clk 0:02:58.4]} 24. Nd2 {[%clk 0:02:15.8]} 24... Qc7 {[%clk 0:02:52.4]} 25.
Nc4 {[%clk 0:02:08.3]} 25... b5 {[%clk 0:02:53.2]} 26. Ne3 {[%clk 0:02:09.4]}
26... Bg5 {[%clk 0:02:54.4]} 27. Qc2 {[%clk 0:02:08.1]} 27... Qc5 {[%clk
0:02:39.6]} 28. Qe2 {[%clk 0:02:05.4]} 28... b4 {[%clk 0:02:34.9]} 29. cxb4
{[%clk 0:01:55.5]} 29... Qxb4 {[%clk 0:02:35.5]} 30. Bb3 {[%clk 0:01:56.9]}
30... Bb5 {[%clk 0:02:35]} 31. Nd5 {[%clk 0:01:57.9]} 31... Bxd3 {[%clk
0:02:34.4]} 32. Qxd3 {[%clk 0:01:57.7]} 32... Qa5 {[%clk 0:02:24.4]} 33. Nxe7
{[%clk 0:01:44.1]} 33... Bxe7 {[%clk 0:02:25.5]} 34. g3 {[%clk 0:01:41]} 34...
Rd7 {[%clk 0:02:21.9]} 35. Kg2 {[%clk 0:01:40.1]} 35... Bd8 {[%clk 0:02:23.1]}
36. Qe2 {[%clk 0:01:34.5]} 36... Qb6 {[%clk 0:02:19]} 37. Rd5 {[%clk 0:01:30.2]}
37... Rc7 {[%clk 0:02:15.8]} 38. Qd2 {[%clk 0:01:22.7]} 38... Be7 {[%clk
0:02:13.5]} 39. Rd3 {[%clk 0:01:23.8]} 39... Qc6 {[%clk 0:02:08.7]} 40. Rf3
{[%clk 0:01:24.6]} 40... Bd8 {[%clk 0:02:00.9]} 41. Bd5 {[%clk 0:01:24.8]} 41...
Qc5 {[%clk 0:01:54]} 42. Qd3 {[%clk 0:01:22.2]} 42... a5 {[%clk 0:01:41.2]} 43.
Qb3 {[%clk 0:01:22.8]} 43... Bf6 {[%clk 0:01:41.5]} 44. Qb8 {[%clk 0:01:09.1]}
44... Qa7 {[%clk 0:01:36.8]} 45. Qxa7 {[%clk 0:00:56.3]} 45... Rxa7 {[%clk
0:01:37.8]} 46. Rc3 {[%clk 0:00:57.9]} 46... Bg5 {[%clk 0:01:31.4]} 47. Rc6
{[%clk 0:00:57.8]} 47... Rd7 {[%clk 0:01:32.5]} 48. Kf3 {[%clk 0:00:53.3]} 48...
f5 {[%clk 0:01:33]} 49. Ke2 {[%clk 0:00:50.8]} 49... fxe4 {[%clk 0:01:23.8]} 50.
Ra6 {[%clk 0:00:50.8]} 50... Rc7 {[%clk 0:01:23]} 51. Bxe4 {[%clk 0:00:51.7]}
51... Rc4 {[%clk 0:01:23.2]} 52. Bd3 {[%clk 0:00:41.7]} 52... Rd4 {[%clk
0:01:21.2]} 53. h4 {[%clk 0:00:36.1]} 53... Bc1 {[%clk 0:01:21]} 54. Ra7+ {[%clk
0:00:28.4]} 54... Kh6 {[%clk 0:01:19.6]} 55. f3 {[%clk 0:00:21.4]} 55... Rb4
{[%clk 0:00:51.4]} 56. b3 {[%clk 0:00:20.6]} 56... d5 {[%clk 0:00:25.8]} 57. g4
{[%clk 0:00:21.7]} 57... e4 {[%clk 0:00:23.4]} 58. g5+ {[%clk 0:00:22.4]} 58...
Bxg5 {[%clk 0:00:23.7]} 59. hxg5+ {[%clk 0:00:23.7]} 59... Kxg5 {[%clk
0:00:24.9]} 60. fxe4 {[%clk 0:00:25.1]} 60... dxe4 {[%clk 0:00:26]} 61. Bc4
{[%clk 0:00:24.6]} 61... h5 {[%clk 0:00:27.1]} 62. Ke3 {[%clk 0:00:21.6]} 62...
Rb6 {[%clk 0:00:26.3]} 63. Kxe4 {[%clk 0:00:20.8]} 63... h4 {[%clk 0:00:27.3]}
64. Rxa5+ {[%clk 0:00:21.7]} 64... Kg4 {[%clk 0:00:26.1]} 65. Ra6 {[%clk
0:00:22.2]} 1-0

[Event "*** MasterClass Titled Tuesday Blitz"]
[Site "Chess.com"]
[Date "2017.10.03"]
[Round "3"]
[White "chessking2151"]
[Black "joppie2"]
[Result "0-1"]
[WhiteElo "2360"]
[BlackElo "2570"]
[TimeControl "180+2"]
[EndTime "13:39:03 PDT"]
[Termination "joppie2 won by resignation"]

1. e4 {[%clk 0:03:01.9]} 1... e5 {[%clk 0:03:00]} 2. Nf3 {[%clk 0:03:01.1]} 2...
Nc6 {[%clk 0:02:53.9]} 3. Bb5 {[%clk 0:03:00.1]} 3... g6 {[%clk 0:02:49.4]} 4.
d4 {[%clk 0:02:44.9]} 4... exd4 {[%clk 0:02:48.7]} 5. Nxd4 {[%clk 0:02:45.5]}
5... Bg7 {[%clk 0:02:50.1]} 6. Nxc6 {[%clk 0:02:45.3]} 6... bxc6 {[%clk
0:02:47.9]} 7. Bc4 {[%clk 0:02:43.7]} 7... Ne7 {[%clk 0:02:48.8]} 8. O-O {[%clk
0:02:44.4]} 8... O-O {[%clk 0:02:49.3]} 9. Nc3 {[%clk 0:02:45.5]} 9... Rb8
{[%clk 0:02:39.9]} 10. Bb3 {[%clk 0:02:43.9]} 10... d5 {[%clk 0:02:37.7]} 11.
exd5 {[%clk 0:02:42.9]} 11... cxd5 {[%clk 0:02:38]} 12. Bg5 {[%clk 0:02:31.6]}
12... c6 {[%clk 0:02:36.9]} 13. Re1 {[%clk 0:02:29.8]} 13... Be6 {[%clk
0:02:27.6]} 14. Na4 {[%clk 0:02:29.3]} 14... Qd6 {[%clk 0:02:17.8]} 15. Bh4
{[%clk 0:02:27.6]} 15... Nf5 {[%clk 0:02:18.1]} 16. Bg5 {[%clk 0:02:19.3]} 16...
c5 {[%clk 0:02:17.4]} 17. Qd2 {[%clk 0:01:57.8]} 17... Qc6 {[%clk 0:01:54.6]}
18. c3 {[%clk 0:01:44]} 18... Nd6 {[%clk 0:01:39.7]} 19. Be3 {[%clk 0:01:30.5]}
19... Ne4 {[%clk 0:01:31.5]} 20. Qe2 {[%clk 0:01:24.7]} 20... d4 {[%clk
0:01:25.7]} 21. cxd4 {[%clk 0:01:24.2]} 21... cxd4 {[%clk 0:01:22.2]} 22. Bxd4
{[%clk 0:01:05.1]} 22... Bxd4 {[%clk 0:01:04]} 23. Qxe4 {[%clk 0:01:04]} 23...
Qxe4 {[%clk 0:01:00.9]} 24. Rxe4 {[%clk 0:01:05.9]} 24... Bxb3 {[%clk
0:01:02.2]} 25. Rxd4 {[%clk 0:00:54.2]} 25... Be6 {[%clk 0:00:59.2]} 26. b3
{[%clk 0:00:40.6]} 26... Rfc8 {[%clk 0:01:00]} 27. Rad1 {[%clk 0:00:35.3]} 27...
Kg7 {[%clk 0:00:59.4]} 28. R4d2 {[%clk 0:00:33.4]} 28... Rc6 {[%clk 0:00:57.7]}
29. f3 {[%clk 0:00:34.7]} 29... Rbc8 {[%clk 0:00:54.8]} 30. Kf2 {[%clk
0:00:34.7]} 30... Kf6 {[%clk 0:00:50.5]} 31. Nb2 {[%clk 0:00:28.6]} 31... g5
{[%clk 0:00:43.9]} 32. Nd3 {[%clk 0:00:26.2]} 32... h6 {[%clk 0:00:44.3]} 33.
Nb4 {[%clk 0:00:26.9]} 33... Rc5 {[%clk 0:00:40.8]} 34. h3 {[%clk 0:00:21.2]}
34... Rb5 {[%clk 0:00:41.3]} 35. Nc2 {[%clk 0:00:19.3]} 35... Rbc5 {[%clk
0:00:39]} 36. Nd4 {[%clk 0:00:20.6]} 36... Bd7 {[%clk 0:00:39.4]} 37. Ne2 {[%clk
0:00:10.4]} 37... Bb5 {[%clk 0:00:39.5]} 38. Ng3 {[%clk 0:00:11.5]} 38... Kg7
{[%clk 0:00:39.2]} 39. Ne4 {[%clk 0:00:11.2]} 39... Rc2 {[%clk 0:00:33.4]} 40.
Rxc2 {[%clk 0:00:12.2]} 40... Rxc2+ {[%clk 0:00:34.3]} 41. Rd2 {[%clk
0:00:13.9]} 41... Rc1 {[%clk 0:00:36]} 42. Ke3 {[%clk 0:00:13.6]} 42... Rg1
{[%clk 0:00:33.5]} 43. Nd6 {[%clk 0:00:14.7]} 43... Bf1 {[%clk 0:00:33.8]} 44.
Nf5+ {[%clk 0:00:14]} 44... Kg6 {[%clk 0:00:34.9]} 45. Ng3 {[%clk 0:00:15]}
45... Bb5 {[%clk 0:00:25.8]} 46. Rd6+ {[%clk 0:00:14.6]} 46... Kh7 {[%clk
0:00:25.9]} 47. Kf2 {[%clk 0:00:11.6]} 47... Ra1 {[%clk 0:00:25.3]} 48. Nf5
{[%clk 0:00:11.2]} 48... Rxa2+ {[%clk 0:00:26]} 49. Kg3 {[%clk 0:00:10.9]} 49...
Ra6 {[%clk 0:00:27.1]} 50. Rxa6 {[%clk 0:00:07.6]} 50... Bxa6 {[%clk 0:00:29]}
51. Nd6 {[%clk 0:00:09.2]} 51... Kg6 {[%clk 0:00:28.9]} 52. f4 {[%clk
0:00:10.7]} 52... f6 {[%clk 0:00:25.7]} 53. Kf3 {[%clk 0:00:09.9]} 53... Bf1
{[%clk 0:00:24.3]} 54. f5+ {[%clk 0:00:08.9]} 54... Kh5 {[%clk 0:00:23.5]} 55.
b4 {[%clk 0:00:09.4]} 55... Bd3 {[%clk 0:00:22.1]} 56. Ne8 {[%clk 0:00:05.6]}
56... Bxf5 {[%clk 0:00:22.5]} 57. Nxf6+ {[%clk 0:00:07.1]} 57... Kg6 {[%clk
0:00:24.4]} 58. Nd5 {[%clk 0:00:09]} 58... Bd7 {[%clk 0:00:23.7]} 59. Nc3 {[%clk
0:00:09.7]} 59... Kf5 {[%clk 0:00:24.2]} 60. g3 {[%clk 0:00:10.5]} 60... Ke5
{[%clk 0:00:25.1]} 61. Ke3 {[%clk 0:00:10.2]} 61... Bxh3 {[%clk 0:00:25.4]} 62.
Nb5 {[%clk 0:00:11.7]} 62... a6 {[%clk 0:00:24.6]} 63. Nc7 {[%clk 0:00:12.3]}
63... Bc8 {[%clk 0:00:24.6]} 64. b5 {[%clk 0:00:13.7]} 64... a5 {[%clk
0:00:25.7]} 65. b6 {[%clk 0:00:14.7]} 65... h5 {[%clk 0:00:26.3]} 66. Nb5 {[%clk
0:00:15.5]} 66... h4 {[%clk 0:00:25.7]} 67. gxh4 {[%clk 0:00:16.8]} 67... gxh4
{[%clk 0:00:27.6]} 68. Na3 {[%clk 0:00:17.7]} 68... Kd5 {[%clk 0:00:28.4]} 69.
Kf3 {[%clk 0:00:18.5]} 69... Kc5 {[%clk 0:00:29.6]} 70. b7 {[%clk 0:00:18.3]}
70... Bxb7+ {[%clk 0:00:29.3]} 71. Kg4 {[%clk 0:00:19.9]} 71... Be4 {[%clk
0:00:30.5]} 72. Kxh4 {[%clk 0:00:20.6]} 72... Kb4 {[%clk 0:00:31.3]} 0-1